fUST/lending_fUST_20250505
["ID","MTS","AMOUNT","RATE_DAILY","PERIOD"]
[359976667,1746459049889,-156.407797,0.00035616,14]
[359976668,1746459049899,-1511.108173,0.00035616,14]
[359976669,1746459049909,-1511.108173,0.00035616,14]
[359976670,1746459049921,-400.0,0.00035616,14]
[359976671,1746459049930,-1511.108173,0.00035616,14]
[359976672,1746459049939,-400.0,0.00035616,14]
[359976673,1746459049949,-1511.108173,0.00035616,14]
[359976674,1746459049958,-151.0,0.00035616,14]
[359976675,1746459049967,-1511.108173,0.00035616,14]
[359976676,1746459049976,-151.0,0.00035616,14]
[359976677,1746459049986,-1511.108173,0.00035616,14]
[359976678,1746459049996,-151.0,0.00035616,14]
[359976679,1746459050006,-1511.108173,0.00035616,14]
[359976680,1746459050020,-151.0,0.00035616,14]
[359976681,1746459050029,-400.0,0.00035616,14]
[359976682,1746459050039,-1511.108173,0.00035616,14]
[359976683,1746459050049,-1511.108173,0.00035616,14]
[359976684,1746459050059,-186.79082279,0.00035616,14]
[359976685,1746459050069,-1511.108173,0.00035616,14]
[359976686,1746459050079,-400.0,0.00035616,14]
[359976687,1746459050089,-400.0,0.00035616,14]
[359976688,1746459050099,-400.0,0.00035616,14]
[359976689,1746459050109,-1120.69,0.00035616,14]
[359976690,1746459050120,-214.4004236,0.00035616,14]
[359976691,1746459050130,-400.0,0.00035616,14]
[359976692,1746459050141,-400.0,0.00035616,14]
[359976693,1746459050150,-400.0,0.00035616,14]
[359976694,1746459050159,-724.1,0.00035616,14]
[359976695,1746459050168,-151.0,0.00035616,14]
[359976696,1746459050177,-400.0,0.00035616,14]
[359976697,1746459050187,-400.0,0.00035616,14]
[359976698,1746459050196,-400.0,0.00035616,14]
[359976699,1746459050205,-559.2,0.00035616,14]
[359976700,1746459050214,-500.0,0.00035616,14]
[359976701,1746459050223,-400.0,0.00035616,14]
[359976702,1746459050234,-400.0,0.00035616,14]
[359976703,1746459050243,-400.0,0.00035616,14]
[359976704,1746459050252,-585.11,0.00035616,14]
[359976705,1746459050262,-400.0,0.00035616,14]
[359976706,1746459050271,-1087.99,0.00035616,14]
[359976707,1746459050280,-400.0,0.00035616,14]
[359976708,1746459050290,-400.0,0.00035616,14]
[359976709,1746459050299,-400.0,0.00035616,14]
[359976710,1746459050309,-3423.04,0.00035616,2]
[359976711,1746459050318,-158.049974,0.00035616,2]
[359976712,1746459050328,-158.049974,0.00035616,2]
[359976713,1746459050337,-158.049974,0.00035616,2]
[359976714,1746459050346,-158.049974,0.00035616,2]
[359976715,1746459050356,-158.049974,0.00035616,2]
[359976716,1746459050365,-158.049974,0.00035616,2]
[359976717,1746459050375,-158.049974,0.00035616,2]
[359976718,1746459050385,-403.96761852,0.00035616,14]
[359976719,1746459050395,-158.049974,0.00035616,2]
[359976720,1746459050404,-158.049974,0.00035616,2]
[359976721,1746459050414,-158.049974,0.00035616,2]
[359976722,1746459050423,-400.0,0.00035616,14]
[359976723,1746459050437,-158.049974,0.00035616,2]
[359976724,1746459050447,-158.049974,0.00035616,2]
[359976725,1746459050456,-158.049974,0.00035616,2]
[359976726,1746459050466,-169.29999015,0.00035616,14]
[359976727,1746459050475,-158.049974,0.00035616,2]
[359976728,1746459050486,-400.0,0.00035616,14]
[359976729,1746459050495,-543.68,0.00035616,14]
[359976730,1746459050505,-407.10330426,0.00035616,14]
[359976731,1746459050514,-501.87447224,0.00035616,2]
[359976732,1746459050524,-469.06,0.00035616,14]
[359976733,1746459050534,-400.0,0.00035616,14]
[359976734,1746459050543,-151.0,0.00035616,14]
[359976735,1746459050552,-151.0,0.00035616,14]
[359976736,1746459050561,-515.58542781,0.00035616,14]
[359976737,1746459050571,-151.0,0.00035616,14]
[359976738,1746459050580,-151.0,0.00035616,14]
[359976739,1746459050590,-151.0,0.00035616,14]
[359976740,1746459050599,-151.0,0.00035616,14]
[359976741,1746459050608,-400.0,0.00035616,14]
[359976742,1746459050618,-400.0,0.00035616,14]
[359976743,1746459050627,-400.0,0.00035616,14]
[359976744,1746459050637,-400.0,0.00035616,14]
[359976745,1746459050646,-151.0,0.00035616,14]
[359976746,1746459050655,-151.0,0.00035616,14]
[359976747,1746459050664,-151.0,0.00035616,14]
[359976748,1746459050673,-151.0,0.00035616,14]
[359976749,1746459050683,-400.0,0.00035616,14]
[359976750,1746459050692,-151.0,0.00035616,14]
[359976751,1746459050701,-151.0,0.00035616,14]
[359976752,1746459050711,-201.0391838,0.00035616,3]
[359976753,1746459050722,-414.31,0.00035616,14]
[359976754,1746459050732,-500.0,0.00035616,14]
[359976755,1746459050741,-400.0,0.00035616,14]
[359976756,1746459050750,-400.0,0.00035616,14]
[359976757,1746459050759,-500.0,0.00035616,14]
[359976758,1746459050769,-402.70237286,0.00035616,14]
[359976759,1746459050779,-400.0,0.00035616,14]
[359976760,1746459050787,-400.0,0.00035616,14]
[359976761,1746459050797,-400.0,0.00035616,14]
[359976762,1746459050805,-400.0,0.00035616,14]
[359976763,1746459050815,-432.44,0.00035616,14]
[359976764,1746459050824,-466.23,0.00035616,14]
[359976765,1746459050834,-400.0,0.00035616,14]
[359976766,1746459050843,-160.0,0.00035616,10]
[359976767,1746459050853,-400.0,0.00035616,14]
[359976768,1746459050863,-400.0,0.00035616,14]
[359976769,1746459050873,-211.43298111,0.00035616,14]
[359976770,1746459050882,-400.0,0.00035616,14]
[359976771,1746459050891,-400.0,0.00035616,14]
[359976772,1746459050900,-151.0,0.00035616,14]
[359976773,1746459050909,-444.65,0.00035616,14]
[359976774,1746459050919,-1446.92,0.00035616,14]
[359976775,1746459050929,-155.129694,0.00035616,14]
[359976776,1746459050939,-400.0,0.00035616,14]
[359976777,1746459050948,-400.0,0.00035616,14]
[359976778,1746459050956,-1719.04,0.00035616,14]
[359976779,1746459050966,-400.0,0.00035616,14]
[359976780,1746459050976,-400.0,0.00035616,14]
[359976781,1746459050986,-400.0,0.00035616,14]
[359976782,1746459050995,-2655.61,0.00035616,14]
[359976783,1746459051003,-400.0,0.00035616,14]
[359976784,1746459051012,-400.0,0.00035616,14]
[359976785,1746459051021,-473.5,0.00035616,14]
[359976786,1746459051030,-841.77443764,0.00035616,10]
[359976787,1746459051039,-4564.81,0.00035616,14]
[359976788,1746459051049,-513.05568798,0.00035616,14]
[359976789,1746459051058,-400.0,0.00035616,14]
[359976790,1746459051067,-884.29,0.00035616,14]
[359976791,1746459051077,-400.0,0.00035616,14]
[359976792,1746459051086,-511.54472949,0.00035616,14]
[359976793,1746459051095,-400.0,0.00035616,14]
[359976794,1746459051104,-400.0,0.00035616,14]
[359976795,1746459051210,-400.0,0.00035616,14]
[359976796,1746459051221,-1463.32,0.00035616,14]
[359976797,1746459051231,-1464.22,0.00035616,14]
[359976798,1746459051240,-400.0,0.00035616,14]
[359976799,1746459051250,-151.0,0.00035616,14]
[359976800,1746459051260,-151.0,0.00035616,14]
[359976801,1746459051270,-151.0,0.00035616,14]
[359976802,1746459051279,-210.25095741,0.00035616,14]
[359976803,1746459051289,-400.0,0.00035616,14]
[359976804,1746459051298,-289.016135,0.00035616,14]
[359976805,1746459051308,-400.0,0.00035616,14]
[359976806,1746459051318,-414.2,0.00035616,14]
[359976807,1746459051327,-400.0,0.00035616,14]
[359976808,1746459051337,-151.0,0.00035616,14]
[359976809,1746459051346,-400.0,0.00035616,14]
[359976810,1746459051356,-400.0,0.00035616,14]
[359976811,1746459051366,-3846.08,0.00035616,14]
[359976812,1746459051375,-400.0,0.00035616,14]
[359976813,1746459051385,-627.6,0.00035616,14]
[359976814,1746459051394,-400.0,0.00035616,14]
[359976815,1746459051405,-2780.51,0.00035616,14]
[359976816,1746459051417,-400.0,0.00035616,14]
[359976817,1746459051428,-1202.56,0.00035616,14]
[359976818,1746459051438,-743.26,0.00035616,14]
[359976819,1746459051449,-665.6,0.00035616,14]
[359976820,1746459051459,-785.62,0.00035616,14]
[359976821,1746459051470,-500.0,0.00035616,14]
[359976822,1746459051480,-540.73,0.00035616,14]
[359976823,1746459051493,-2402.28,0.00035616,14]
[359976824,1746459051504,-400.0,0.00035616,14]
[359976825,1746459051514,-151.0,0.00035616,5]
[359976826,1746459051524,-1869.88,0.00035616,14]
[359976827,1746459051534,-400.0,0.00035616,14]
[359976828,1746459051544,-400.0,0.00035616,14]
[359976829,1746459051554,-400.0,0.00035616,14]
[359976830,1746459051564,-1180.0,0.00035616,5]
[359976831,1746459051574,-1000.0,0.00035616,14]
[359976832,1746459051584,-400.0,0.00035616,14]
[359976833,1746459051593,-1085.52,0.00035616,14]
[359976834,1746459051603,-151.287481,0.00035616,14]
[359976835,1746459051612,-200.07702048,0.00035616,14]
[359976836,1746459051622,-400.0,0.00035616,14]
[359976837,1746459051632,-485.9620042,0.00035616,14]
[359976838,1746459051642,-928.49,0.00035616,14]
[359976839,1746459051652,-469.96639291,0.00035616,14]
[359976840,1746459051662,-400.0,0.00035616,14]
[359976841,1746459051671,-151.0,0.00035616,5]
[359976842,1746459051681,-716.51,0.00035616,14]
[359976843,1746459051691,-400.0,0.00035616,14]
[359976844,1746459051701,-400.0,0.00035616,14]
[359976845,1746459051711,-1279.41,0.00035616,14]
[359976846,1746459051721,-163.77125305,0.00035616,14]
[359976847,1746459051731,-433.61,0.00035616,14]
[359976848,1746459051740,-151.0,0.00035616,5]
[359976849,1746459051750,-400.0,0.00035616,14]
[359976850,1746459051760,-151.0,0.00035616,5]
[359976851,1746459051770,-4058.97,0.00035616,14]
[359976852,1746459051780,-500.0,0.00035616,5]
[359976853,1746459051791,-400.0,0.00035616,14]
[359976854,1746459051803,-2217.53,0.00035616,14]
[359976855,1746459051814,-151.0,0.00035616,5]
[359976856,1746459051824,-151.0,0.00035616,14]
[359976857,1746459051835,-151.0,0.00035616,14]
[359976858,1746459051845,-151.0,0.00035616,14]
[359976859,1746459051855,-1030.09,0.00035616,14]
[359976860,1746459051865,-151.0,0.00035616,14]
[359976861,1746459051875,-500.0,0.00035616,5]
[359976862,1746459051884,-182.409738,0.00035616,14]
[359976863,1746459051894,-151.32069639,0.00035616,5]
[359976864,1746459051904,-500.0,0.00035616,5]
[359976865,1746459051915,-400.0,0.00035616,14]
[359976866,1746459051925,-400.0,0.00035616,14]
[359976867,1746459051935,-400.0,0.00035616,14]
[359976868,1746459051944,-500.0,0.00035616,5]
[359976869,1746459051954,-405.35599822,0.00035616,14]
[359976870,1746459051964,-156.87371,0.00035616,14]
[359976871,1746459051973,-469.3636609,0.00035616,14]
[359976872,1746459051983,-151.0,0.00035616,5]
[359976873,1746459051994,-400.0,0.00035616,14]
[359976874,1746459052003,-400.0,0.00035616,14]
[359976875,1746459052013,-400.0,0.00035616,14]
[359976876,1746459052022,-400.0,0.00035616,14]
[359976877,1746459052032,-400.0,0.00035616,14]
[359976878,1746459052042,-2257.14,0.00035616,14]
[359976879,1746459052051,-350.34277277,0.00035616,14]
[359976880,1746459052060,-1518.57,0.00035616,14]
[359976881,1746459052069,-500.0,0.00035616,14]
[359976882,1746459052079,-414.81,0.00035616,14]
[359976883,1746459052089,-8400.28,0.00035616,14]
[359976884,1746459052098,-8400.28,0.00035616,14]
[359976885,1746459052108,-8400.28,0.00035616,14]
[359976886,1746459052117,-8400.28,0.00035616,14]
[359976887,1746459052127,-412.27648471,0.00035616,14]
[359976888,1746459052136,-8400.28,0.00035616,14]
[359976889,1746459052146,-8400.28,0.00035616,14]
[359976890,1746459052155,-400.0,0.00035616,14]
[359976891,1746459052165,-400.0,0.00035616,14]
[359976892,1746459052176,-8400.28,0.00035616,14]
[359976893,1746459052185,-8400.28,0.00035616,14]
[359976894,1746459052195,-8400.28,0.00035616,14]
[359976895,1746459052204,-8400.28,0.00035616,14]
[359976896,1746459052214,-8400.28,0.00035616,14]
[359976897,1746459052223,-400.0,0.00035616,14]
[359976898,1746459052233,-8400.28,0.00035616,14]
[359976899,1746459052244,-8400.28,0.00035616,14]
[359976900,1746459052254,-8400.28,0.00035616,14]
[359976901,1746459052264,-400.0,0.00035616,14]
[359976902,1746459052274,-8400.28,0.00035616,14]
[359976903,1746459052284,-1593.53,0.00035616,14]
[359976904,1746459052294,-8400.28,0.00035616,14]
[359976905,1746459052303,-8400.28,0.00035616,14]
[359976906,1746459052313,-8400.28,0.00035616,14]
[359976907,1746459052323,-8400.28,0.00035616,14]
[359976908,1746459052332,-151.0,0.00035616,14]
[359976909,1746459052342,-8400.28,0.00035616,14]
[359976910,1746459052351,-151.0,0.00035616,14]
[359976911,1746459052361,-8400.28,0.00035616,14]
[359976912,1746459052371,-8400.28,0.00035616,14]
[359976913,1746459052381,-151.0,0.00035616,14]
[359976914,1746459052391,-8400.28,0.00035616,14]
[359976915,1746459052400,-8400.31550142,0.00035616,14]
[359976916,1746459052410,-151.0,0.00035616,14]
[359976917,1746459052421,-2368.2,0.00035616,14]
[359976918,1746459052433,-400.0,0.00035616,14]
[359976919,1746459052443,-400.0,0.00035616,14]
[359976920,1746459052452,-400.0,0.00035616,14]
[359976921,1746459052462,-511.3094572,0.00035616,14]
[359976922,1746459052473,-400.0,0.00035616,14]
[359976923,1746459052483,-1367.75,0.00035616,14]
[359976924,1746459052494,-400.0,0.00035616,14]
[359976925,1746459052506,-151.0,0.00035616,14]
[359976926,1746459052516,-1464.68,0.00035616,14]
[359976927,1746459052525,-561.25,0.00035616,14]
[359976928,1746459052535,-151.0,0.00035616,14]
[359976929,1746459052545,-500.0,0.00035616,14]
[359976930,1746459052554,-400.0,0.00035616,14]
[359976931,1746459052564,-1811.8,0.00035616,14]
[359976932,1746459052573,-400.0,0.00035616,14]
[359976933,1746459052582,-182.149004,0.00035616,14]
[359976934,1746459052592,-182.149004,0.00035616,14]
[359976935,1746459052602,-443.99,0.00035616,14]
[359976936,1746459052611,-182.149004,0.00035616,14]
[359976937,1746459052620,-400.0,0.00035616,14]
[359976938,1746459052630,-182.149004,0.00035616,14]
[359976939,1746459052639,-182.149004,0.00035616,14]
[359976940,1746459052648,-3292.85,0.00035616,14]
[359976941,1746459052657,-615.41,0.00035616,14]
[359976942,1746459052667,-182.149004,0.00035616,14]
[359976943,1746459052676,-358.0,0.00035616,14]
[359976944,1746459052686,-182.149004,0.00035616,14]
[359976945,1746459052696,-400.0,0.00035616,14]
[359976946,1746459052705,-1098.32,0.00035616,14]
[359976947,1746459052715,-182.149004,0.00035616,14]
[359976948,1746459052724,-400.0,0.00035616,14]
[359976949,1746459052733,-182.149004,0.00035616,14]
[359976950,1746459052743,-182.149004,0.00035616,14]
[359976951,1746459052752,-400.0,0.00035616,14]
[359976952,1746459052761,-182.149004,0.00035616,14]
[359976953,1746459052771,-602.37,0.00035616,14]
[359976954,1746459052780,-182.149004,0.00035616,14]
[359976955,1746459052790,-151.0,0.00035616,14]
[359976956,1746459052799,-400.0,0.00035616,14]
[359976957,1746459052809,-156.92106,0.00035616,14]
[359976958,1746459052819,-400.0,0.00035616,14]
[359976959,1746459052828,-400.0,0.00035616,14]
[359976960,1746459052838,-2001.03,0.00035616,14]
[359976961,1746459052847,-400.0,0.00035616,14]
[359976962,1746459052857,-400.0,0.00035616,14]
[359976963,1746459052866,-400.0,0.00035616,14]
[359976964,1746459052876,-218.628785,0.00035616,14]
[359976965,1746459052885,-5069.21,0.00035616,14]
[359976966,1746459052894,-218.628785,0.00035616,14]
[359976967,1746459053000,-950.07,0.00035616,14]
[359976968,1746459053010,-218.628785,0.00035616,14]
[359976969,1746459053019,-426.76,0.00035616,14]
[359976970,1746459053029,-218.628785,0.00035616,14]
[359976971,1746459053038,-218.628785,0.00035616,14]
[359976972,1746459053047,-218.628785,0.00035616,14]
[359976973,1746459053057,-400.0,0.00035616,14]
[359976974,1746459053067,-400.0,0.00035616,14]
[359976975,1746459053076,-218.628785,0.00035616,14]
[359976976,1746459053086,-500.0,0.00035616,15]
[359976977,1746459053095,-218.628785,0.00035616,14]
[359976978,1746459053104,-400.0,0.00035616,14]
[359976979,1746459053115,-218.628785,0.00035616,14]
[359976980,1746459053124,-218.628785,0.00035616,14]
[359976981,1746459053133,-218.628785,0.00035616,14]
[359976982,1746459053142,-218.628785,0.00035616,14]
[359976983,1746459053152,-4475.41,0.00035616,14]
[359976984,1746459053161,-400.0,0.00035616,14]
[359976985,1746459053171,-400.0,0.00035616,14]
[359976986,1746459053180,-400.0,0.00035616,14]
[359976987,1746459053189,-400.0,0.00035616,14]
[359976988,1746459053199,-400.0,0.00035616,14]
[359976989,1746459053208,-400.0,0.00035616,14]
[359976990,1746459053218,-400.0,0.00035616,14]
[359976991,1746459053227,-400.0,0.00035616,14]
[359976992,1746459053236,-400.0,0.00035616,14]
[359976993,1746459053246,-1810.88,0.00035616,14]
[359976994,1746459053255,-400.0,0.00035616,14]
[359976995,1746459053265,-26298.19,0.00035616,14]
[359976996,1746459053274,-400.0,0.00035616,14]
[359976997,1746459053285,-400.0,0.00035616,14]
[359976998,1746459053295,-400.0,0.00035616,14]
[359976999,1746459053305,-400.0,0.00035616,14]
[359977000,1746459053315,-400.0,0.00035616,14]
[359977001,1746459053324,-516.32,0.00035616,14]
[359977002,1746459053334,-12121.33,0.00035616,14]
[359977003,1746459053344,-400.0,0.00035616,14]
[359977004,1746459053353,-630.62,0.00035616,14]
[359977005,1746459053363,-400.0,0.00035616,14]
[359977006,1746459053372,-400.0,0.00035616,14]
[359977007,1746459053381,-400.0,0.00035616,14]
[359977008,1746459053391,-400.0,0.00035616,14]
[359977009,1746459053400,-967.48,0.00035616,14]
[359977010,1746459053410,-400.0,0.00035616,14]
[359977011,1746459053421,-362.29280791,0.00035616,14]
[359977012,1746459053434,-438.3,0.00035616,14]
[359977013,1746459053443,-400.0,0.00035616,14]
[359977014,1746459053453,-400.0,0.00035616,14]
[359977015,1746459053462,-400.0,0.00035616,14]
[359977016,1746459053472,-400.0,0.00035616,14]
[359977017,1746459053481,-200.0,0.00035616,14]
[359977018,1746459053492,-663.28,0.00035616,14]
[359977019,1746459053502,-466.94,0.00035616,14]
[359977020,1746459053512,-400.0,0.00035616,14]
[359977021,1746459053522,-535.03,0.00035616,14]
[359977022,1746459053532,-501.42649316,0.00035616,14]
[359977023,1746459053542,-400.0,0.00035616,14]
[359977024,1746459053552,-400.0,0.00035616,14]
[359977025,1746459053561,-400.0,0.00035616,14]
[359977026,1746459053571,-8594.79,0.00035616,14]
[359977027,1746459053580,-400.0,0.00035616,14]
[359977028,1746459053590,-400.0,0.00035616,14]
[359977029,1746459053600,-400.0,0.00035616,14]
[359977030,1746459053609,-1871.33,0.00035616,14]
[359977031,1746459053619,-400.0,0.00035616,14]
[359977032,1746459053628,-400.0,0.00035616,14]
[359977033,1746459053638,-151.0,0.00035616,14]
[359977034,1746459053647,-151.0,0.00035616,14]
[359977035,1746459053656,-400.0,0.00035616,14]
[359977036,1746459053666,-302.64660055,0.00035616,14]
[359977037,1746459053676,-400.0,0.00035616,14]
[359977038,1746459053685,-151.0,0.00035616,14]
[359977039,1746459053694,-151.0,0.00035616,14]
[359977040,1746459053704,-151.0,0.00035616,14]
[359977041,1746459053713,-577.34,0.00035616,14]
[359977042,1746459053723,-151.0,0.00035616,14]
[359977043,1746459053731,-151.0,0.00035616,14]
[359977044,1746459053741,-9518.68,0.00035616,14]
[359977045,1746459053751,-400.0,0.00035616,14]
[359977046,1746459053760,-400.0,0.00035616,14]
[359977047,1746459053769,-400.0,0.00035616,8]
[359977048,1746459053778,-400.0,0.00035616,14]
[359977049,1746459053787,-400.0,0.00035616,14]
[359977050,1746459053796,-1539.51,0.00035616,14]
[359977051,1746459053806,-2727.74,0.00035616,14]
[359977052,1746459053815,-400.0,0.00035616,14]
[359977053,1746459053824,-2624.73,0.00035616,14]
[359977054,1746459053834,-400.0,0.00035616,14]
[359977055,1746459053843,-524.64,0.00035616,14]
[359977056,1746459053853,-400.0,0.00035616,14]
[359977057,1746459053862,-490.45,0.00035616,14]
[359977058,1746459053872,-400.0,0.00035616,14]
[359977059,1746459053882,-607.28,0.00035616,14]
[359977060,1746459053891,-400.0,0.00035616,14]
[359977061,1746459053901,-7101.67,0.00035616,14]
[359977062,1746459053911,-401.37635423,0.00035616,14]
[359977063,1746459053920,-400.0,0.00035616,14]
[359977064,1746459053930,-400.0,0.00035616,14]
[359977065,1746459053939,-400.0,0.00035616,14]
[359977066,1746459053948,-400.0,0.00035616,14]
[359977067,1746459053957,-1814.06,0.00035616,14]
[359977068,1746459053967,-400.0,0.00035616,14]
[359977069,1746459053976,-400.0,0.00035616,14]
[359977070,1746459053987,-516.1151743,0.00035616,14]
[359977071,1746459053996,-400.69511377,0.00035616,14]
[359977072,1746459054006,-2536.52,0.00035616,14]
[359977073,1746459054016,-400.0,0.00035616,14]
[359977074,1746459054025,-3702.96,0.00035616,14]
[359977075,1746459054035,-400.0,0.00035616,14]
[359977076,1746459054044,-400.0,0.00035616,14]
[359977077,1746459054053,-400.0,0.00035616,14]
[359977078,1746459054063,-400.0,0.00035616,14]
[359977079,1746459054072,-151.0,0.00035616,14]
[359977080,1746459054082,-151.0,0.00035616,14]
[359977081,1746459054092,-151.0,0.00035616,14]
[359977082,1746459054101,-151.0,0.00035616,14]
[359977083,1746459054110,-834.85,0.00035616,14]
[359977084,1746459054120,-151.0,0.00035616,14]
[359977085,1746459054129,-2949.6,0.00035616,14]
[359977086,1746459054139,-400.0,0.00035616,14]
[359977087,1746459054148,-151.0,0.00035616,14]
[359977088,1746459054157,-151.0,0.00035616,14]
[359977089,1746459054167,-400.0,0.00035616,14]
[359977090,1746459054176,-400.0,0.00035616,14]
[359977091,1746459054186,-512.28050981,0.00035616,14]
[359977092,1746459054195,-1165.98,0.00035616,14]
[359977093,1746459054205,-400.0,0.00035616,14]
[359977094,1746459054215,-400.0,0.00035616,14]
[359977095,1746459054224,-400.0,0.00035616,14]
[359977096,1746459054233,-400.0,0.00035616,14]
[359977097,1746459054243,-400.0,0.00035616,14]
[359977098,1746459054252,-400.0,0.00035616,14]
[359977099,1746459054262,-1203.48,0.00035616,14]
[359977100,1746459054271,-400.0,0.00035616,14]
[359977101,1746459054281,-400.0,0.00035616,14]
[359977102,1746459054290,-400.0,0.00035616,14]
[359977103,1746459054300,-400.0,0.00035616,14]
[359977104,1746459054309,-400.0,0.00035616,14]
[359977105,1746459054320,-3635.95,0.00035616,14]
[359977106,1746459054330,-1832.64,0.00035616,14]
[359977107,1746459054339,-151.0,0.00035616,14]
[359977108,1746459054349,-151.0,0.00035616,14]
[359977109,1746459054359,-1249.62,0.00035616,14]
[359977110,1746459054368,-151.0,0.00035616,14]
[359977111,1746459054377,-151.0,0.00035616,14]
[359977112,1746459054387,-151.0,0.00035616,14]
[359977113,1746459054397,-400.0,0.00035616,14]
[359977114,1746459054406,-151.0,0.00035616,14]
[359977115,1746459054416,-500.0,0.00035616,120]
[359977116,1746459054428,-500.0,0.0003562,2]
[359977117,1746459054438,-182.23035355,0.0003562,10]
[359977118,1746459054448,-151.0,0.00035643,14]
[359977119,1746459054458,-151.0,0.00035643,14]
[359977120,1746459054469,-182.149004,0.00035643,14]
[359977121,1746459054479,-182.149004,0.00035643,14]
[359977122,1746459054489,-218.628785,0.00035643,14]
[359977123,1746459054499,-218.628785,0.00035643,14]
[359977124,1746459054509,-151.0,0.00035643,14]
[359977125,1746459054602,-151.0,0.00035643,14]
[359977126,1746459054613,-500.0,0.00035643,14]
[359977127,1746459054622,-151.0,0.00035643,14]
[359977128,1746459054631,-256.76663444,0.00035643,14]
[359977129,1746459054641,-151.0,0.00035643,14]
[359977130,1746459054651,-151.0,0.00035643,14]
[359977131,1746459054660,-151.0,0.00035643,3]
[359977132,1746459054669,-151.0,0.00035643,5]
[359977133,1746459054679,-1180.0,0.00035643,5]
[359977134,1746459054688,-151.0,0.00035643,5]
[359977135,1746459054698,-151.0,0.00035643,5]
[359977136,1746459054707,-151.0,0.00035643,5]
[359977137,1746459054718,-500.0,0.00035643,5]
[359977138,1746459054728,-241.39031166,0.00035643,5]
[359977139,1746459054738,-500.0,0.00035643,5]
[359977140,1746459054748,-500.0,0.00035643,5]
[359977141,1746459054758,-500.0,0.00035643,5]
[359977142,1746459054767,-151.0,0.00035643,5]
[359977143,1746459054777,-500.0,0.00035647,2]
[359977144,1746459054787,-151.0,0.00035671,14]
[359977145,1746459054796,-151.0,0.00035671,14]
[359977146,1746459054805,-500.0,0.00035671,14]
[359977147,1746459054815,-151.0,0.00035671,14]
[359977148,1746459054825,-151.0,0.00035671,14]
[359977149,1746459054834,-151.0,0.00035671,3]
[359977150,1746459054844,-255.09370797,0.00035671,5]
[359977151,1746459054853,-1180.0,0.00035671,5]
[359977152,1746459054862,-151.0,0.00035671,5]
[359977153,1746459054872,-151.0,0.00035671,5]
[359977154,1746459054882,-199.07220192,0.00035671,5]
[359977155,1746459054891,-500.0,0.00035671,5]
[359977156,1746459054901,-448.52264615,0.00035671,5]
[359977157,1746459054910,-500.0,0.00035671,5]
[359977158,1746459054919,-500.0,0.00035671,5]
[359977159,1746459054929,-158.11387576,0.00035671,5]
[359977160,1746459054938,-517.22970476,0.00035673,5]
[359977161,1746459054947,-503.40112922,0.00035673,5]
[359977162,1746459054956,-500.0,0.00035673,5]
[359977163,1746459054966,-444.01875665,0.00035673,5]
[359977164,1746459054976,-500.0,0.00035673,5]
[359977165,1746459054986,-500.0,0.00035673,5]
[359977166,1746459054995,-500.0,0.00035673,5]